[Event "XXIX Cracovia 2018"]
[Site "Krakow"]
[Date "2018.12.29"]
[Round "4"]
[White "Sahil, Tickoo"]
[Black "Dietmayer-Kraeutler, Marco"]
[Result "0-1"]
[ECO "D00"]
[WhiteElo "2224"]
[BlackElo "2311"]
[Annotator "NA"]
[PlyCount "102"]
[EventDate "2018.12.27"]
[EventType "swiss"]
[EventCountry "POL"]
[SourceTitle "playchess.com"]
[Source "ChessBase"]
[SourceQuality "1"]
[TimeControl "40/5400+30:1800+30"]

1. d4 {[%emt 0:00:00]} d5 {[%emt 0:00:00]} 2. Bf4 {[%emt 0:00:00]} Nf6 {[%emt 0:00:07]} 3. e3 {[%emt 0:00:00]} c5 {[%emt 0:00:22]} 4. c3 {[%emt 0:00:00]} Nc6 {[%emt 0:00:16]} 5. Nd2 {[%emt 0:00:00]} Bf5 {[%emt 0:01:25]} 6. Ngf3 {[%emt 0:00:09]} e6 {[%emt 0:00:55]} 7. Qb3 {[%emt 0:01:50]} Qb6 {[%emt 0:01:56]} 8. Qxb6 {[%emt 0:00:51]} axb6 {[%emt 0:00:04]} 9. Bb5 {[%emt 0:01:14]} Nd7 {[%emt 0:05:12]} 10. Ne5 {[%emt 0:03:33]} Ndxe5 {[%emt 0:02:43]} 11. Bxe5 {[%emt 0:00:02]} Kd7 {[%emt 0:01:31]} 12. O-O {[%emt 0:12:39]} f6 {[%emt 0:01:48]} 13. Bg3 {[%emt 0:00:59]} Be7 {[%emt 0:01:36]} 14. Rfe1 {[%emt 0:04:26]} Bg6 {[%emt 0:06:50]} 15. dxc5 {[%emt 0:09:22]} bxc5 {[%emt 0:00:11]} 16. e4 {[%emt 0:00:36]} Bd6 {[%emt 0:09:54]} 17. Bxd6 {[%emt 0:30:24]} Kxd6 {[%emt 0:00:03]} 18. Rad1 {[%emt 0:01:24]} Kc7 {[%emt 0:07:04]} 19. exd5 {[%emt 0:06:43]} exd5 {[%emt 0:00:07]} 20. a3 {[%emt 0:02:38]} Rhd8 {[%emt 0:02:55]} 21. Nf3 {[%emt 0:05:34]} Bh5 {[%emt 0:05:58]} 22. Be2 {[%emt 0:00:50]} Rd7 {[%emt 0:02:56]} 23. Rd2 {[%emt 0:05:02]} Rad8 {[%emt 0:05:01]} 24. Kf1 {[%emt 0:03:32]} d4 {[%emt 0:06:18]} 25. cxd4 {[%emt 0:00:25]} Bxf3 {[%emt 0:00:20]} 26. Bxf3 {[%emt 0:00:10]} Nxd4 {[%emt 0:00:06]} 27. Bg4 {[%emt 0:02:42]} f5 {[%emt 0:00:30]} 28. Be2 {[%emt 0:03:35]} b5 {[%emt 0:00:58]} 29. f4 {[%emt 0:02:05]} Kb6 {[%emt 0:00:32]} 30. g3 {[%emt 0:01:17]} Ka5 {[%emt 0:01:09]} 31. Bd1 {[%emt 0:01:09]} Rd5 {[%emt 0:02:14]} 32. Kf2 {[%emt 0:00:37]} g6 {[%emt 0:02:26]} 33. h3 {[%emt 0:01:02]} b4 {[%emt 0:00:38]} 34. axb4+ {[%emt 0:00:08]} Kxb4 {[%emt 0:00:02]} 35. Re3 {[%emt 0:01:56]} c4 {[%emt 0:02:20]} 36. Re7 {[%emt 0:00:25]} Nb5 {[%emt 0:01:20]} 37. Rxd5 {[%emt 0:00:29]} Rxd5 {[%emt 0:00:01]} 38. Ke1 {[%emt 0:00:37]} Rd3 {[%emt 0:00:01]} 39. Rxh7 {[%emt 0:00:22]} Rxg3 {[%emt 0:00:04]} 40. h4 {[%emt 0:00:00]} Rg2 {[%emt 0:00:00]} 41. h5 {[%emt 0:24:55]} gxh5 {[%emt 0:03:26]} 42. Rf7 {[%emt 0:02:49]} h4 {[%emt 0:08:35]} 43. Rxf5 {[%emt 0:00:55]} h3 {[%emt 0:00:06]} 44. Rh5 {[%emt 0:02:22]} h2 {[%emt 0:00:05]} 45. Bf3 {[%emt 0:00:05]} Rxb2 {[%emt 0:00:03]} 46. Kf1 {[%emt 0:01:32]} Nd4 {[%emt 0:02:51]} 47. Be4 {[%emt 0:00:05]} Ne2 {[%emt 0:03:20]} 48. Rh3 {[%emt 0:01:55]} Nxf4 {[%emt 0:00:33]} 49. Rh8 {[%emt 0:00:15]} c3 {[%emt 0:02:33]} 50. Rh4 {[%emt 0:00:29]} Kc5 {[%emt 0:01:41]} 51. Rxf4 {[%emt 0:00:40]} c2 {[%emt 0:00:07]} 0-1

[Event "XXIX Cracovia 2018"]
[Site "Krakow"]
[Date "2018.12.29"]
[Round "4"]
[White "Adamczewski, Maciej"]
[Black "Smal, Tobiasz"]
[Result "1-0"]
[ECO "E91"]
[WhiteElo "2080"]
[BlackElo "1958"]
[Annotator "NA"]
[PlyCount "59"]
[EventDate "2018.12.27"]
[EventType "swiss"]
[EventCountry "POL"]
[SourceTitle "playchess.com"]
[Source "ChessBase"]
[SourceQuality "1"]
[TimeControl "40/5400+30:1800+30"]

1. d4 Nf6 2. c4 g6 3. Nc3 Bg7 4. Nf3 O-O 5. e4 d6 6. Be2 Na6 7. O-O e5 8. Be3 Ng4 9. Bg5 Qe8 10. Re1 h6 11. Bh4 f5 12. h3 Nf6 13. dxe5 dxe5 14. exf5 gxf5 15. Bf1 e4 16. Nd4 Qg6 17. Nde2 Nh5 18. Nd5 Qf7 19. Qc2 Be5 20. g4 fxg4 21. Qxe4 Re8 22. Ng3 Nxg3 23. Bxg3 Bf5 24. Qxe5 Rxe5 25. Rxe5 Be6 26. Rae1 Bxd5 27. cxd5 Rd8 28. hxg4 Nb4 29. Bc4 b5 30. Bb3 1-0

[Event "XXIX Cracovia 2018"]
[Site "Krakow"]
[Date "2018.12.29"]
[Round "4"]
[White "Patsia, Zviad"]
[Black "Brylski, Pawel"]
[Result "1-0"]
[ECO "A10"]
[WhiteElo "2058"]
[BlackElo "1975"]
[Annotator "NA"]
[PlyCount "47"]
[EventDate "2018.12.27"]
[EventType "swiss"]
[EventCountry "POL"]
[SourceTitle "playchess.com"]
[Source "ChessBase"]
[SourceQuality "1"]
[TimeControl "40/5400+30:1800+30"]

1. c4 {[%emt 0:00:23]} f5 {[%emt 0:00:00]} 2. Nc3 {[%emt 0:02:05]} Nf6 {[%emt 0:00:00]} 3. g3 {[%emt 0:00:29]} e6 {[%emt 0:00:17]} 4. Bg2 {[%emt 0:00:26]} Be7 {[%emt 0:01:07]} 5. d4 {[%emt 0:00:29]} d6 {[%emt 0:00:16]} 6. Nf3 {[%emt 0:03:24]} O-O {[%emt 0:00:30]} 7. b3 {[%emt 0:05:24]} Qe8 {[%emt 0:03:39]} 8. Qc2 {[%emt 0:02:30]} Qh5 {[%emt 0:07:55]} 9. h3 {[%emt 0:02:15]} Nc6 {[%emt 0:07:53]} 10. Bb2 {[%emt 0:10:22]} a5 {[%emt 0:03:44]} 11. a3 {[%emt 0:01:03]} Rb8 {[%emt 0:14:46]} 12. d5 {[%emt 0:06:07]} Ne5 {[%emt 0:04:27]} 13. Nxe5 {[%emt 0:02:58]} dxe5 {[%emt 0:00:13]} 14. Nb5 {[%emt 0:00:37]} exd5 {[%emt 0:16:10]} 15. Bxe5 {[%emt 0:00:27]} Bd7 {[%emt 0:03:34]} 16. Nxc7 {[%emt 0:02:25]} Ne4 {[%emt 0:05:48]} 17. Nxd5 {[%emt 0:01:05]} Bc5 {[%emt 0:00:23]} 18. e3 {[%emt 0:07:09]} Rbe8 {[%emt 0:00:54]} 19. Qb2 {[%emt 0:05:34]} f4 {[%emt 0:09:58]} 20. Bxf4 {[%emt 0:01:15]} g5 {[%emt 0:01:09]} 21. Bxe4 {[%emt 0:02:01]} gxf4 {[%emt 0:00:43]} 22. gxf4 {[%emt 0:00:18]} Qh6 {[%emt 0:05:13]} 23. Rg1+ {[%emt 0:01:30]} Kf7 {[%emt 0:00:09]} 24. Bg6+ {[%emt 0:00:30]} 1-0

[Event "XXIX Cracovia 2018"]
[Site "Krakow"]
[Date "2018.12.29"]
[Round "4"]
[White "Budnik, Mateusz"]
[Black "Gawronski, Lukasz"]
[Result "1-0"]
[ECO "C07"]
[WhiteElo "2053"]
[BlackElo "1916"]
[Annotator "NA"]
[PlyCount "73"]
[EventDate "2018.12.27"]
[EventType "swiss"]
[EventCountry "POL"]
[SourceTitle "playchess.com"]
[Source "ChessBase"]
[SourceQuality "1"]
[TimeControl "40/5400+30:1800+30"]

1. e4 e6 2. d4 d5 3. Nd2 c5 {[%emt 1:31:30]} 4. Ngf3 cxd4 {[%emt 0:00:30]} 5. Nxd4 Nc6 {[%emt 0:00:30]} 6. Nxc6 bxc6 7. Bd3 Qc7 8. O-O Bd6 9. h3 Ne7 10. c4 d4 11. Nf3 c5 12. b4 O-O 13. b5 Ng6 14. a4 Nf4 15. e5 Bxe5 16. Nxe5 Qxe5 17. Qf3 Nxd3 18. Qxa8 Qf5 19. Qxa7 Qe4 20. f3 Qe2 21. b6 Ne1 22. Rf2 Qd1 23. Kh2 Qb3 24. Rb2 Qc3 25. b7 Bxb7 26. Qxb7 Nd3 27. Rbb1 Qxc4 28. Qb3 Qa6 29. Bd2 Qd6+ 30. f4 Nxf4 31. Bxf4 Qxf4+ 32. Qg3 Qe4 33. a5 e5 34. Re1 Qc2 35. Qxe5 d3 36. a6 d2 37. Red1 1-0

[Event "XXIX Cracovia 2018"]
[Site "Krakow"]
[Date "2018.12.29"]
[Round "4"]
[White "Warchol, Bartosz"]
[Black "Jablonska, Sabina"]
[Result "1-0"]
[ECO "D11"]
[WhiteElo "1975"]
[BlackElo "1964"]
[Annotator "NA"]
[PlyCount "63"]
[EventDate "2018.12.27"]
[EventType "swiss"]
[EventCountry "POL"]
[SourceTitle "playchess.com"]
[Source "ChessBase"]
[SourceQuality "1"]
[TimeControl "40/5400+30:1800+30"]

1. d4 {[%emt 0:00:00]} d5 {[%emt 0:00:00]} 2. c4 {[%emt 0:00:00]} c6 {[%emt 0:00:00]} 3. Nf3 {[%emt 0:00:00]} a6 {[%emt 0:00:06]} 4. e3 {[%emt 0:00:28]} Nf6 {[%emt 0:01:00]} 5. Nc3 {[%emt 0:00:35]} b5 {[%emt 0:06:47]} 6. b3 {[%emt 0:03:44]} Bg4 {[%emt 0:04:20]} 7. Bd3 {[%emt 0:04:12]} e6 {[%emt 0:06:22]} 8. Qc2 {[%emt 0:01:37]} Bxf3 {[%emt 0:16:03]} 9. gxf3 {[%emt 0:00:16]} Be7 {[%emt 0:08:15]} 10. Bb2 {[%emt 0:02:06]} Nbd7 {[%emt 0:06:35]} 11. O-O {[%emt 0:03:55]} O-O {[%emt 0:10:42]} 12. Ne2 {[%emt 0:09:43]} Bd6 {[%emt 0:09:31]} 13. Kh1 {[%emt 0:09:00]} Re8 {[%emt 0:02:45]} 14. f4 {[%emt 0:02:59]} Nf8 {[%emt 0:09:01]} 15. Ng1 {[%emt 0:02:29]} Ng6 {[%emt 0:04:27]} 16. Nf3 {[%emt 0:01:46]} Nd7 {[%emt 0:04:02]} 17. Rg1 {[%emt 0:04:25]} f5 {[%emt 0:01:26]} 18. Ng5 {[%emt 0:07:45]} Ndf8 {[%emt 0:00:45]} 19. Qe2 {[%emt 0:01:56]} Ra7 {[%emt 0:03:35]} 20. Qh5 {[%emt 0:04:09]} h6 {[%emt 0:00:26]} 21. Nf3 {[%emt 0:02:20]} Kh7 {[%emt 0:00:27]} 22. Rg2 {[%emt 0:02:36]} Qf6 {[%emt 0:00:50]} 23. Rag1 {[%emt 0:01:06]} Ree7 {[%emt 0:02:15]} 24. Ng5+ {[%emt 0:08:57]} Kg8 {[%emt 0:00:04]} 25. Nxe6 {[%emt 0:00:12]} Rf7 {[%emt 0:01:44]} 26. Rxg6 {[%emt 0:01:51]} Nxg6 {[%emt 0:00:21]} 27. Rxg6 {[%emt 0:00:39]} Qe7 {[%emt 0:00:40]} 28. Bxf5 {[%emt 0:05:28]} bxc4 {[%emt 0:00:06]} 29. Qxh6 {[%emt 0:02:43]} cxb3 {[%emt 0:00:53]} 30. Ng5 {[%emt 0:01:45]} Qb7 {[%emt 0:00:51]} 31. Qh7+ {[%emt 0:03:34]} Kf8 {[%emt 0:00:01]} 32. Re6 {[%emt 0:01:38]} 1-0

[Event "XXIX Cracovia 2018"]
[Site "Krakow"]
[Date "2018.12.29"]
[Round "4"]
[White "Zianowicz, Dominik"]
[Black "Jankowiak, Tomasz"]
[Result "1/2-1/2"]
[ECO "D10"]
[WhiteElo "1969"]
[BlackElo "2070"]
[Annotator "NA"]
[PlyCount "70"]
[EventDate "2018.12.27"]
[EventType "swiss"]
[EventCountry "POL"]
[SourceTitle "playchess.com"]
[Source "ChessBase"]
[SourceQuality "1"]
[TimeControl "40/5400+30:1800+30"]

1. d4 d5 2. c4 c6 3. Nc3 Nf6 4. cxd5 cxd5 5. Bf4 Nc6 6. e3 a6 7. Bd3 Bg4 8. f3 Bh5 9. Rc1 e6 10. Nge2 Bd6 11. O-O Bg6 12. Na4 Bxd3 13. Qxd3 Bxf4 14. Nxf4 Nd7 15. Qa3 Qe7 16. Qxe7+ Kxe7 17. Nd3 Rhc8 18. Ndc5 Nxc5 19. Nxc5 b6 20. Nd3 a5 21. Rc3 Nb4 22. Rfc1 Rxc3 23. Rxc3 Nxd3 24. Rxd3 Rc8 25. Kf1 Rc1+ 26. Ke2 Rg1 27. Kf2 Ra1 28. Rb3 Rxa2 29. Rxb6 a4 30. Kg3 Ra1 31. Ra6 h5 32. h4 Rb1 33. Rxa4 Rxb2 34. e4 dxe4 35. fxe4 Rd2 1/2-1/2

[Event "XXIX Cracovia 2018"]
[Site "Krakow"]
[Date "2018.12.29"]
[Round "4"]
[White "Szwaj, Jacek"]
[Black "Kumor, Lukasz"]
[Result "0-1"]
[ECO "B33"]
[WhiteElo "1968"]
[BlackElo "2040"]
[Annotator "NA"]
[PlyCount "118"]
[EventDate "2018.12.27"]
[EventType "swiss"]
[EventCountry "POL"]
[SourceTitle "playchess.com"]
[Source "ChessBase"]
[SourceQuality "1"]
[TimeControl "40/5400+30:1800+30"]

1. e4 {[%emt 0:00:00]} c5 {[%emt 0:04:12]} 2. Nf3 {[%emt 0:00:00]} Nc6 {[%emt 0:02:29]} 3. d4 {[%emt 0:00:02]} cxd4 {[%emt 0:00:03]} 4. Nxd4 {[%emt 0:00:08]} Nf6 {[%emt 0:01:52]} 5. Nc3 {[%emt 0:01:59]} e5 {[%emt 0:03:00]} 6. Ndb5 {[%emt 0:01:11]} d6 {[%emt 0:00:10]} 7. Bg5 {[%emt 0:00:39]} a6 {[%emt 0:00:25]} 8. Na3 {[%emt 0:00:08]} b5 {[%emt 0:01:00]} 9. Nd5 {[%emt 0:00:15]} Be7 {[%emt 0:00:09]} 10. Bxf6 {[%emt 0:01:39]} Bxf6 {[%emt 0:00:12]} 11. c4 {[%emt 0:01:41]} b4 {[%emt 0:03:02]} 12. Nc2 {[%emt 0:00:34]} Rb8 {[%emt 0:04:02]} 13. b3 {[%emt 0:01:14]} O-O {[%emt 0:00:38]} 14. g3 {[%emt 0:00:19]} Bg5 {[%emt 0:01:26]} 15. h4 {[%emt 0:00:22]} Bh6 {[%emt 0:09:45]} 16. Bg2 {[%emt 0:00:20]} a5 {[%emt 0:09:12]} 17. O-O {[%emt 0:00:24]} g6 {[%emt 0:08:52]} 18. Qd3 {[%emt 0:05:01]} f5 {[%emt 0:08:30]} 19. Rad1 {[%emt 0:03:43]} Kh8 {[%emt 0:13:59]} 20. exf5 {[%emt 0:16:00]} Bxf5 {[%emt 0:02:32]} 21. Be4 {[%emt 0:02:05]} Bh3 {[%emt 0:11:39]} 22. Rfe1 {[%emt 0:01:35]} Bg7 {[%emt 0:02:38]} 23. Nde3 {[%emt 0:04:13]} Nd4 {[%emt 0:05:58]} 24. Nxd4 {[%emt 0:00:30]} exd4 {[%emt 0:00:01]} 25. Nd5 {[%emt 0:00:37]} Qd7 {[%emt 0:01:38]} 26. f4 {[%emt 0:03:18]} Bg4 {[%emt 0:01:02]} 27. Rc1 {[%emt 0:07:35]} Rfe8 {[%emt 0:02:07]} 28. c5 {[%emt 0:11:28]} dxc5 {[%emt 0:00:23]} 29. Rxc5 {[%emt 0:00:04]} a4 {[%emt 0:01:50]} 30. Rc7 {[%emt 0:01:46]} Qe6 {[%emt 0:01:13]} 31. Rxg7 {[%emt 0:00:56]} Kxg7 {[%emt 0:00:17]} 32. Qxd4+ {[%emt 0:00:15]} Kh6 {[%emt 0:00:39]} 33. Nc7 {[%emt 0:00:37]} Qe7 {[%emt 0:00:38]} 34. Nxe8 {[%emt 0:04:46]} Rxe8 {[%emt 0:00:05]} 35. Kf2 {[%emt 0:00:09]} Bf5 {[%emt 0:00:45]} 36. Kf3 {[%emt 0:00:06]} axb3 {[%emt 0:00:36]} 37. axb3 {[%emt 0:00:08]} Qe6 {[%emt 0:00:29]} 38. Re3 {[%emt 0:00:08]} Bg4+ {[%emt 0:00:46]} 39. Kf2 {[%emt 0:00:38]} Qa6 {[%emt 0:00:36]} 40. Qd2 {[%emt 0:00:00]} Bh3 {[%emt 0:00:00]} 41. Qe2 {[%emt 0:06:37]} Qb6 {[%emt 0:12:58]} 42. Bf3 {[%emt 0:01:43]} Bf1 {[%emt 0:06:10]} 43. Qe1 {[%emt 0:01:57]} Qd4 {[%emt 0:01:40]} 44. g4 {[%emt 0:03:13]} Bb5 {[%emt 0:02:00]} 45. g5+ {[%emt 0:03:50]} Kg7 {[%emt 0:00:02]} 46. Qc1 {[%emt 0:02:58]} Re7 {[%emt 0:02:24]} 47. Qe1 {[%emt 0:16:17]} h6 {[%emt 0:04:58]} 48. gxh6+ {[%emt 0:04:54]} Kxh6 {[%emt 0:00:17]} 49. h5 {[%emt 0:01:33]} gxh5 {[%emt 0:01:36]} 50. Qc1 {[%emt 0:02:27]} Be8 {[%emt 0:02:30]} 51. Ke2 {[%emt 0:01:09]} Bb5+ {[%emt 0:00:14]} 52. Kf2 {[%emt 0:00:08]} Kg7 {[%emt 0:01:29]} 53. Bxh5 {[%emt 0:02:29]} Qxf4+ {[%emt 0:00:27]} 54. Bf3 {[%emt 0:00:11]} Qh2+ {[%emt 0:00:23]} 55. Bg2 {[%emt 0:00:12]} Qf4+ {[%emt 0:00:55]} 56. Bf3 {[%emt 0:00:21]} Qd4 {[%emt 0:00:22]} 57. Qg1+ {[%emt 0:01:45]} Kf6 {[%emt 0:00:38]} 58. Qc1 {[%emt 0:00:25]} Qh4+ {[%emt 0:00:20]} 59. Kg1 {[%emt 0:00:32]} Qg3+ 0-1

[Event "XXIX Cracovia 2018"]
[Site "Krakow"]
[Date "2018.12.29"]
[Round "4"]
[White "Rysaev, Danial"]
[Black "Kvaratskhelia, Dimitri"]
[Result "1-0"]
[ECO "D35"]
[WhiteElo "1945"]
[BlackElo "1996"]
[Annotator "NA"]
[PlyCount "77"]
[EventDate "2018.12.27"]
[EventType "swiss"]
[EventCountry "POL"]
[SourceTitle "playchess.com"]
[Source "ChessBase"]
[SourceQuality "1"]
[TimeControl "40/5400+30:1800+30"]

1. d4 {[%emt 0:00:00]} Nf6 {[%emt 0:00:18]} 2. c4 {[%emt 0:00:05]} e6 {[%emt 0:00:05]} 3. Nc3 {[%emt 0:00:23]} d5 {[%emt 0:00:44]} 4. cxd5 {[%emt 0:00:06]} exd5 {[%emt 0:00:04]} 5. Bg5 {[%emt 0:00:04]} Be7 {[%emt 0:00:05]} 6. e3 {[%emt 0:00:14]} c6 {[%emt 0:00:15]} 7. Bd3 {[%emt 0:00:07]} Nbd7 {[%emt 0:00:16]} 8. Qc2 {[%emt 0:00:51]} O-O {[%emt 0:00:16]} 9. Nge2 {[%emt 0:01:05]} Re8 {[%emt 0:00:28]} 10. f3 {[%emt 0:01:31]} Nf8 {[%emt 0:00:52]} 11. Bh4 {[%emt 0:00:25]} b6 {[%emt 0:02:46]} 12. O-O {[%emt 0:00:43]} c5 {[%emt 0:01:48]} 13. Rad1 {[%emt 0:02:07]} c4 {[%emt 0:12:46]} 14. Bf5 {[%emt 0:00:06]} Bb7 {[%emt 0:00:28]} 15. Bf2 {[%emt 0:06:39]} g6 {[%emt 0:02:35]} 16. Bh3 {[%emt 0:03:22]} Bd6 {[%emt 0:04:23]} 17. Ng3 {[%emt 0:05:15]} a6 {[%emt 0:01:50]} 18. e4 {[%emt 0:07:09]} Bf4 {[%emt 0:03:41]} 19. e5 {[%emt 0:02:50]} Bxg3 {[%emt 0:05:01]} 20. Bxg3 {[%emt 0:00:37]} Nh5 {[%emt 0:00:21]} 21. f4 {[%emt 0:05:07]} f5 {[%emt 0:06:22]} 22. Be1 {[%emt 0:02:37]} Ne6 {[%emt 0:03:31]} 23. Bxf5 {[%emt 0:00:46]} gxf5 {[%emt 0:02:47]} 24. Qxf5 {[%emt 0:03:56]} Nhg7 {[%emt 0:04:28]} 25. Qg4 {[%emt 0:00:07]} h5 {[%emt 0:10:58]} 26. Qh3 {[%emt 0:02:03]} Bc8 {[%emt 0:04:54]} 27. Bh4 {[%emt 0:01:53]} Qd7 {[%emt 0:09:09]} 28. Qg3 {[%emt 0:00:38]} Nf8 {[%emt 0:06:24]} 29. f5 {[%emt 0:00:22]} Ra7 {[%emt 0:05:25]} 30. f6 {[%emt 0:01:50]} Qc6 {[%emt 0:01:39]} 31. Qf3 {[%emt 0:03:13]} Be6 {[%emt 0:02:38]} 32. fxg7 {[%emt 0:00:55]} Rxg7 {[%emt 0:00:03]} 33. h3 {[%emt 0:01:32]} Qd7 {[%emt 0:01:53]} 34. Bf6 {[%emt 0:00:29]} Rg6 {[%emt 0:02:17]} 35. Qxh5 {[%emt 0:01:04]} Qh7 {[%emt 0:01:51]} 36. Qxh7+ {[%emt 0:00:30]} Kxh7 {[%emt 0:00:40]} 37. Ne2 {[%emt 0:00:34]} Nd7 {[%emt 0:03:26]} 38. Nf4 {[%emt 0:00:13]} Rgg8 {[%emt 0:00:41]} 39. Bh4 {[%emt 0:00:41]} 1-0

[Event "XXIX Cracovia 2018"]
[Site "Krakow"]
[Date "2018.12.30"]
[Round "5"]
[White "Hnydiuk, Aleksander"]
[Black "Reza, Wojciech"]
[Result "1-0"]
[ECO "A61"]
[WhiteElo "2409"]
[BlackElo "2287"]
[Annotator "NA"]
[PlyCount "61"]
[EventDate "2018.12.27"]
[EventType "swiss"]
[EventCountry "POL"]
[SourceTitle "playchess.com"]
[Source "ChessBase"]
[SourceQuality "1"]
[TimeControl "40/5400+30:1800+30"]

1. d4 {[%emt 0:00:25]} Nf6 {[%emt 0:00:00]} 2. c4 {[%emt 0:00:04]} c5 {[%emt 0:00:00]} 3. d5 {[%emt 0:00:11]} e6 {[%emt 0:00:00]} 4. Nc3 {[%emt 0:00:06]} exd5 {[%emt 0:00:00]} 5. cxd5 {[%emt 0:00:03]} d6 {[%emt 0:00:08]} 6. Nf3 {[%emt 0:00:14]} g6 {[%emt 0:00:32]} 7. Bf4 {[%emt 0:00:14]} Bg7 {[%emt 0:04:51]} 8. e3 {[%emt 0:02:55]} O-O {[%emt 0:02:56]} 9. h3 {[%emt 0:00:04]} a6 {[%emt 0:08:43]} 10. a4 {[%emt 0:00:07]} Qe7 {[%emt 0:00:07]} 11. Nd2 {[%emt 0:03:37]} Nbd7 {[%emt 0:03:17]} 12. Be2 {[%emt 0:12:36]} Ne5 {[%emt 0:13:50]} 13. O-O {[%emt 0:02:12]} Ne8 {[%emt 0:02:56]} 14. Nc4 {[%emt 0:39:44]} Nxc4 {[%emt 0:01:40]} 15. Bxc4 {[%emt 0:00:05]} b6 {[%emt 0:04:23]} 16. Re1 {[%emt 0:01:09]} g5 {[%emt 0:22:00]} 17. Bg3 {[%emt 0:06:21]} f5 {[%emt 0:00:24]} 18. f4 {[%emt 0:01:14]} gxf4 {[%emt 0:04:18]} 19. exf4 {[%emt 0:02:37]} Qf6 {[%emt 0:02:53]} 20. Kh2 {[%emt 0:05:37]} Nc7 {[%emt 0:00:36]} 21. Qd3 {[%emt 0:07:51]} Bd7 {[%emt 0:02:26]} 22. Re2 {[%emt 0:03:12]} Rfb8 {[%emt 0:08:33]} 23. Ra3 {[%emt 0:01:01]} Kf7 {[%emt 0:02:12]} 24. Rb3 {[%emt 0:01:08]} Qd4 {[%emt 0:01:38]} 25. Bh4 {[%emt 0:00:39]} Bf6 {[%emt 0:05:02]} 26. Qf3 {[%emt 0:02:01]} b5 {[%emt 0:01:32]} 27. Nxb5 {[%emt 0:02:27]} Bxb5 {[%emt 0:04:17]} 28. Qh5+ {[%emt 0:01:26]} Kg8 {[%emt 0:03:37]} 29. axb5 {[%emt 0:00:45]} Bxh4 {[%emt 0:00:51]} 30. Qxh4 {[%emt 0:00:18]} Re8 {[%emt 0:00:35]} 31. Rd3 {[%emt 0:01:28]} 1-0

[Event "XXIX Cracovia 2018"]
[Site "Krakow"]
[Date "2018.12.30"]
[Round "5"]
[White "Molenda, Marcin"]
[Black "Krallis, Christos"]
[Result "1/2-1/2"]
[ECO "E06"]
[WhiteElo "2383"]
[BlackElo "2261"]
[Annotator "NA"]
[PlyCount "67"]
[EventDate "2018.12.27"]
[EventType "swiss"]
[EventCountry "POL"]
[SourceTitle "playchess.com"]
[Source "ChessBase"]
[SourceQuality "1"]
[TimeControl "40/5400+30:1800+30"]

1. d4 {[%emt 0:00:00]} Nf6 {[%emt 0:02:09]} 2. c4 {[%emt 0:00:00]} e6 {[%emt 0:00:25]} 3. Nf3 {[%emt 0:00:00]} d5 {[%emt 0:00:16]} 4. g3 {[%emt 0:00:03]} Be7 {[%emt 0:00:06]} 5. Bg2 {[%emt 0:00:08]} O-O {[%emt 0:00:08]} 6. O-O {[%emt 0:00:05]} c6 {[%emt 0:00:16]} 7. Qc2 {[%emt 0:00:51]} b6 {[%emt 0:01:02]} 8. Bf4 {[%emt 0:05:55]} Bb7 {[%emt 0:00:35]} 9. Ne5 {[%emt 0:00:54]} Nfd7 {[%emt 0:29:25]} 10. Rd1 {[%emt 0:13:13]} Nxe5 {[%emt 0:04:18]} 11. dxe5 {[%emt 0:00:47]} Nd7 {[%emt 0:11:16]} 12. Nc3 {[%emt 0:07:29]} Qc8 {[%emt 0:12:39]} 13. h4 {[%emt 0:02:16]} Rd8 {[%emt 0:02:29]} 14. Rac1 {[%emt 0:00:32]} Nf8 {[%emt 0:07:45]} 15. h5 {[%emt 0:02:36]} h6 {[%emt 0:00:26]} 16. Qb1 {[%emt 0:05:38]} d4 {[%emt 0:02:07]} 17. Ne4 {[%emt 0:00:22]} c5 {[%emt 0:00:16]} 18. e3 {[%emt 0:01:23]} dxe3 {[%emt 0:01:11]} 19. Bxe3 {[%emt 0:03:13]} Qc7 {[%emt 0:00:59]} 20. f4 {[%emt 0:00:53]} Rxd1+ {[%emt 0:00:53]} 21. Rxd1 {[%emt 0:00:07]} Rd8 {[%emt 0:00:37]} 22. Kf2 {[%emt 0:02:20]} Rxd1 {[%emt 0:04:59]} 23. Qxd1 {[%emt 0:00:16]} Qd7 {[%emt 0:01:05]} 24. Qxd7 {[%emt 0:05:27]} Nxd7 {[%emt 0:00:07]} 25. Nc3 {[%emt 0:00:52]} Bxg2 26. Kxg2 {[%emt 0:00:01]} a6 {[%emt 0:04:28]} 27. Kf3 {[%emt 0:00:31]} g6 {[%emt 0:02:51]} 28. hxg6 {[%emt 0:00:23]} fxg6 {[%emt 0:00:10]} 29. Ke4 {[%emt 0:02:44]} h5 {[%emt 0:01:35]} 30. Bf2 {[%emt 0:00:24]} Kf7 {[%emt 0:00:33]} 31. Ne2 {[%emt 0:04:07]} Bd8 {[%emt 0:06:52]} 32. Nc1 {[%emt 0:00:15]} Nb8 {[%emt 0:00:29]} 33. Nd3 {[%emt 0:00:21]} Nc6 {[%emt 0:00:40]} 34. b3 {[%emt 0:02:30]} 1/2-1/2

[Event "XXIX Cracovia 2018"]
[Site "Krakow"]
[Date "2018.12.30"]
[Round "5"]
[White "Biriukov, Nikolai"]
[Black "Nowicki, Bartosz"]
[Result "1-0"]
[ECO "A46"]
[WhiteElo "2365"]
[BlackElo "2305"]
[Annotator "NA"]
[PlyCount "83"]
[EventDate "2018.12.27"]
[EventType "swiss"]
[EventCountry "POL"]
[SourceTitle "playchess.com"]
[Source "ChessBase"]
[SourceQuality "1"]
[TimeControl "40/5400+30:1800+30"]

1. d4 {[%emt 0:00:00]} Nf6 {[%emt 0:03:07]} 2. Nf3 {[%emt 0:01:39]} c5 {[%emt 0:00:05]} 3. c4 {[%emt 0:01:19]} g6 {[%emt 0:00:10]} 4. Nc3 {[%emt 0:00:35]} Bg7 {[%emt 0:00:15]} 5. e4 {[%emt 0:00:27]} O-O {[%emt 0:00:36]} 6. Be2 {[%emt 0:00:08]} cxd4 {[%emt 0:02:09]} 7. Nxd4 {[%emt 0:00:02]} Nc6 {[%emt 0:00:07]} 8. Be3 {[%emt 0:00:04]} d6 {[%emt 0:00:05]} 9. O-O {[%emt 0:04:00]} Bd7 {[%emt 0:00:04]} 10. f3 {[%emt 0:02:42]} Nxd4 {[%emt 0:00:41]} 11. Bxd4 {[%emt 0:00:05]} a5 {[%emt 0:00:31]} 12. Qd2 {[%emt 0:03:00]} Bc6 {[%emt 0:00:07]} 13. Rfd1 {[%emt 0:00:54]} Nd7 {[%emt 0:00:08]} 14. Be3 {[%emt 0:00:40]} Nc5 {[%emt 0:00:35]} 15. Rab1 {[%emt 0:06:15]} Qb6 {[%emt 0:00:25]} 16. Bf1 {[%emt 0:12:37]} Rfc8 {[%emt 0:00:16]} 17. Qf2 {[%emt 0:02:26]} Qb4 {[%emt 0:06:25]} 18. h4 {[%emt 0:07:37]} Bxc3 {[%emt 0:23:31]} 19. bxc3 {[%emt 0:02:16]} Qxc3 {[%emt 0:00:07]} 20. Bd4 {[%emt 0:02:27]} Qa3 {[%emt 0:01:16]} 21. e5 {[%emt 0:10:05]} Ne6 {[%emt 0:12:59]} 22. Rb3 {[%emt 0:01:47]} Qa4 {[%emt 0:00:05]} 23. exd6 {[%emt 0:00:44]} Nxd4 {[%emt 0:01:10]} 24. Rxd4 {[%emt 0:00:11]} e5 {[%emt 0:00:48]} 25. Rd2 {[%emt 0:00:31]} b5 {[%emt 0:13:40]} 26. cxb5 {[%emt 0:01:03]} Bd7 {[%emt 0:00:10]} 27. Rb1 {[%emt 0:01:58]} Rab8 {[%emt 0:00:47]} 28. b6 {[%emt 0:00:20]} h5 {[%emt 0:01:42]} 29. b7 {[%emt 0:01:29]} Rd8 {[%emt 0:00:10]} 30. Qc5 {[%emt 0:00:51]} Bf5 {[%emt 0:05:16]} 31. Rbb2 {[%emt 0:01:26]} Qf4 32. Qf2 {[%emt 0:02:26]} e4 {[%emt 0:04:40]} 33. fxe4 {[%emt 0:00:45]} Qxe4 {[%emt 0:00:17]} 34. Bd3 {[%emt 0:01:58]} Qe5 {[%emt 0:00:51]} 35. Bxf5 {[%emt 0:00:15]} gxf5 {[%emt 0:01:46]} 36. d7 {[%emt 0:01:06]} Kf8 {[%emt 0:00:29]} 37. Rb1 {[%emt 0:06:44]} Qe4 {[%emt 0:01:27]} 38. Qb6 {[%emt 0:08:53]} Qxh4 {[%emt 0:03:45]} 39. Qd6+ {[%emt 0:05:08]} Kg8 {[%emt 0:02:50]} 40. Qxb8 {[%emt 0:00:00]} Rxb8 {[%emt 0:00:00]} 41. d8=Q+ {[%emt 0:01:01]} Rxd8 {[%emt 0:00:51]} 42. Rxd8+ {[%emt 0:00:05]} 1-0